bitfinex/quotes_BTCUSD_20251124
["timestamp","ask_amount","ask_price","bid_price","bid_amount"]
[1763950455464,0.00024761,88038.0,88018.0,0.16593]
[1763950456027,0.00024761,88038.0,88019.0,0.10560118]
[1763950456233,0.00024761,88038.0,88019.0,0.09424]
[1763950456435,0.04264257,88034.0,88019.0,0.09424]
[1763950456981,0.04264257,88034.0,88017.0,0.04526]
[1763950457145,0.00039257,88034.0,88021.0,0.01]
[1763950457900,0.00039257,88034.0,88017.0,0.04526]
[1763950459381,0.69515501,88030.0,88000.0,0.13834]
[1763950459605,0.01136002,88028.0,88000.0,0.13834]
[1763950459816,0.69515501,88030.0,88000.0,0.13834]
[1763950459817,0.01136053,88024.0,88000.0,0.0441]
[1763950460009,0.01136066,88023.0,88000.0,0.0441]
[1763950460214,0.0495,88023.0,88000.0,0.0441]
[1763950460622,0.323,88019.0,88000.0,0.0441]
[1763950460824,0.323,88019.0,87994.0,0.04526]
[1763950460825,0.04443,88001.0,87994.0,0.04526]
[1763950461037,0.323,88019.0,87994.0,0.04526]
[1763950461245,0.01136195,88013.0,87994.0,0.04526]
[1763950461451,0.323,88017.0,87994.0,0.04526]
[1763950461607,0.0495,88026.0,87995.0,0.09424]
[1763950461810,0.0495,88026.0,88001.0,0.01]
[1763950462022,0.04961771,88026.0,88001.0,0.01]
[1763950462422,0.01136053,88024.0,88001.0,0.01]
[1763950462642,0.04961771,88026.0,88001.0,0.01]
[1763950463520,0.01136053,88024.0,87995.0,0.11696856]
[1763950463759,0.323,88019.0,87998.0,0.01]
[1763950463961,0.323,88019.0,87996.0,0.01547699]
[1763950464129,0.00011771,88026.0,88001.0,0.01]
[1763950464328,0.00011771,88026.0,88009.0,0.01]
[1763950464762,0.00011771,88026.0,88025.0,0.04526]
[1763950465160,0.00011771,88026.0,88021.0,0.04526]
[1763950466162,0.00011771,88026.0,88015.0,0.04526]
[1763950466793,0.00011771,88026.0,88016.0,0.10424]
[1763950467702,0.00011771,88026.0,88017.0,0.03921]
[1763950468065,0.00011771,88026.0,88025.0,0.06169]
[1763950468812,0.00011771,88026.0,88017.0,0.03921]
[1763950470894,0.00011771,88026.0,88008.0,0.09424]
[1763950470895,0.00011771,88026.0,88008.0,0.01]
[1763950471468,0.00011771,88026.0,88009.0,0.11320524]
[1763950472119,0.00011771,88026.0,88008.0,0.01]
[1763950472562,0.68379525,88030.0,88008.0,0.01]
[1763950472763,0.68418774,88030.0,88008.0,0.01]
[1763950472959,0.68418774,88030.0,88014.0,0.01]
[1763950473202,0.00039249,88030.0,88014.0,0.01]
[1763950473355,0.00039249,88030.0,88015.0,0.09424]
[1763950473570,0.00039249,88030.0,88029.0,0.11461]
[1763950474662,0.00039249,88030.0,88029.0,0.04867]
[1763950474883,0.00039249,88030.0,88029.0,0.21381]
[1763950475311,0.00039249,88030.0,88029.0,0.22381]
[1763950476097,0.00039249,88030.0,88029.0,0.21381]
[1763950476707,0.00039249,88030.0,88029.0,0.45100785]
[1763950477834,0.00039249,88030.0,88029.0,0.22381]
[1763950478571,0.00039249,88030.0,88029.0,0.23109]
[1763950479224,0.00039249,88030.0,88029.0,0.22381]
[1763950481366,0.00039249,88030.0,88029.0,0.45100785]
[1763950481770,0.00039249,88030.0,88029.0,0.22381]
[1763950481923,0.00039249,88030.0,88029.0,0.23936299]
[1763950482124,0.00039249,88030.0,88029.0,0.24447914]
[1763950482524,0.00039249,88030.0,88029.0,0.24647914]
[1763950483111,0.00039249,88030.0,88029.0,0.22581]
[1763950483313,0.00039249,88030.0,88029.0,0.64852978]
[1763950483520,0.00039249,88030.0,88029.0,0.62581]
[1763950484357,2.49e-06,88030.0,88029.0,0.62581]
[1763950484563,0.00024761,88038.0,88037.0,0.01]
[1763950484763,0.00024761,88038.0,88037.0,0.10593772]
[1763950484972,0.00024761,88038.0,88037.0,0.43231492]
[1763950485171,0.00024761,88038.0,88037.0,0.4095972]
[1763950485620,0.43758,88094.0,88057.0,0.22712561]
[1763950485818,0.43758,88094.0,88037.0,2.18442]
[1763950485819,0.00031592,88090.0,88079.0,0.04117]
[1763950486097,0.00031592,88090.0,88080.0,0.00728]
[1763950486280,0.01309092,88090.0,88089.0,0.11461]
[1763950486565,0.01309092,88090.0,88089.0,0.04867]
[1763950486725,0.01309092,88090.0,88089.0,0.11461]
[1763950486929,0.01309092,88090.0,88089.0,0.04867]
[1763950487276,0.00031592,88090.0,88089.0,0.04867]
[1763950487619,0.00031592,88090.0,88089.0,0.11461]
[1763950487873,0.00031592,88090.0,88089.0,0.21381]
[1763950488239,0.00031592,88090.0,88089.0,0.04867]
[1763950488444,0.00031592,88090.0,88089.0,0.00828]
[1763950488641,0.00031592,88090.0,88089.0,0.17342]
[1763950488863,0.00031592,88090.0,88089.0,0.17614]
[1763950489062,0.00031592,88090.0,88089.0,0.18342]
[1763950489063,0.01294821,88090.0,88089.0,0.18342]
[1763950489317,0.01294821,88090.0,88089.0,0.17342]
[1763950489603,0.01294821,88090.0,88089.0,0.07422]
[1763950489814,0.01294821,88090.0,88089.0,0.001]
[1763950490649,0.01294821,88090.0,88082.0,0.04867]
[1763950490866,0.01294821,88090.0,88083.0,0.00728]
[1763950491085,0.01294821,88090.0,88089.0,0.001]
[1763950491488,0.01294821,88090.0,88082.0,0.04867]
[1763950491699,0.01294821,88090.0,88083.0,0.00728]
[1763950492112,0.01294821,88090.0,88083.0,0.10392]
[1763950492560,0.01294821,88090.0,88089.0,0.001]
[1763950493662,0.01343821,88090.0,88089.0,0.001]
[1763950493852,0.01343821,88090.0,88077.0,0.00728]
[1763950493853,0.06244821,88090.0,88077.0,0.00728]
[1763950494152,0.53885014,88090.0,88083.0,0.001]
[1763950494514,0.00049,88084.0,88077.0,0.00728]
[1763950494925,0.00049,88084.0,88073.0,0.04636]
[1763950495153,0.00049,88084.0,88066.0,0.09664]
[1763950495154,0.04423,88078.0,88072.0,0.00728]
[1763950495334,0.04423,88078.0,88066.0,0.04636]
[1763950495738,0.04423,88078.0,88077.0,0.001]
[1763950496117,0.09374,88078.0,88077.0,0.001]
[1763950496720,0.04521,88078.0,88077.0,0.001]
[1763950496914,0.04521,88078.0,88066.0,0.04636]
[1763950497177,0.04521,88078.0,88066.0,0.04736]
[1763950497671,0.04423,88078.0,88066.0,0.04636]
[1763950498169,0.04423,88078.0,88066.0,0.04736]
[1763950498577,0.04423,88078.0,88066.0,0.04636]
[1763950498825,0.04423,88078.0,88066.0,0.001]
[1763950499393,0.04423,88078.0,88066.0,0.04736]
[1763950500083,0.04423,88078.0,88062.0,0.00728]
[1763950500287,0.04423,88078.0,88066.0,0.001]
[1763950500515,0.323,88089.0,88077.0,0.06258]
[1763950500716,0.01294821,88090.0,88079.0,0.06258]
[1763950501271,0.09373,88080.0,88067.0,0.01]
[1763950501446,0.50927991,88080.0,88066.0,0.00728]
[1763950501819,0.0495,88079.0,88057.0,0.04636]
[1763950502020,0.50927991,88080.0,88058.0,0.0299923]
[1763950502218,0.01135383,88076.0,88058.0,0.0299923]
[1763950502420,0.46504991,88070.0,88058.0,0.0227123]
[1763950502633,0.46504991,88070.0,88057.0,0.04636]
[1763950502634,0.46504991,88070.0,88057.0,0.00728]
[1763950502839,0.50927991,88080.0,88057.0,0.00728]
[1763950503040,0.50927991,88080.0,88058.0,0.10664]
[1763950503222,0.02119381,88079.0,88058.0,0.10664]
[1763950503427,0.04423,88080.0,88059.0,0.02271204]
[1763950503782,0.48527812,88090.0,88079.0,0.10914]
[1763950503783,0.04423,88089.0,88079.0,0.10914]
[1763950503929,0.01294821,88090.0,88079.0,0.10914]
[1763950504113,0.01294821,88090.0,88085.0,0.01]
[1763950504315,0.01294821,88090.0,88068.0,0.09701]
[1763950504558,0.46504991,88080.0,88066.0,0.00728]
[1763950504763,0.46504991,88080.0,88062.0,0.00728]
[1763950505370,0.33028,88089.0,88066.0,0.11071849]
[1763950505570,0.02121662,88088.0,88067.0,0.01252246]
[1763950505775,0.02121662,88087.0,88066.0,0.10701]
[1763950505951,0.01294821,88090.0,88067.0,0.02270998]
[1763950506161,0.01294821,88090.0,88073.0,0.01]
[1763950506398,0.01294821,88090.0,88080.0,0.01]
[1763950506604,0.01294821,88090.0,88089.0,0.06287]
[1763950506605,0.00031592,88090.0,88089.0,0.06287]
[1763950507056,0.00031592,88090.0,88089.0,0.15988]
[1763950507307,0.00031592,88090.0,88089.0,0.16988]
[1763950508679,0.00031592,88090.0,88089.0,0.56988]
[1763950508880,0.00031592,88090.0,88089.0,0.57716]
[1763950509078,0.00031592,88090.0,88089.0,0.56988]
[1763950509427,0.00031592,88090.0,88089.0,0.8062031]
[1763950509999,0.00031592,88090.0,88089.0,0.8042031]
[1763950510217,0.00031592,88090.0,88089.0,0.8062031]
[1763950510408,0.00031592,88090.0,88089.0,2.8062031]
[1763950510608,0.00031592,88090.0,88089.0,0.9048541]
[1763950510807,0.00031592,88090.0,88089.0,0.8062031]
[1763950510976,0.00031592,88090.0,88089.0,0.81527326]
[1763950511172,0.00019592,88090.0,88089.0,2.81527326]
[1763950511380,0.00019592,88090.0,88089.0,1.17637545]
[1763950511381,0.12429423,88090.0,88089.0,1.17637545]
[1763950511608,0.12429423,88090.0,88065.0,0.01781798]
[1763950511609,0.01135434,88072.0,88065.0,0.01781798]
[1763950511924,0.59684771,88090.0,88067.0,0.09701]
[1763950512124,1.224394,88088.0,88073.0,0.06287]
[1763950512322,0.323,88084.0,88073.0,0.06287]
[1763950512526,0.323,88084.0,88074.0,0.02270817]
[1763950512727,0.50312583,88090.0,88074.0,0.02270817]
[1763950512728,0.00180433,88090.0,88083.0,0.06287]
[1763950512927,0.00180433,88090.0,88089.0,0.11214]
[1763950512928,0.00019592,88090.0,88089.0,0.11214]
[1763950513351,0.00019592,88090.0,88089.0,0.10914]
[1763950513551,0.00019592,88090.0,88089.0,0.04627]
[1763950514120,0.22703154,88094.0,88089.0,0.04727]
[1763950514274,0.901394,88095.0,88089.0,0.04827]
[1763950514479,0.901394,88096.0,88089.0,0.04827]
[1763950514680,0.22703279,88093.0,88089.0,0.04827]
[1763950514880,0.22702248,88097.0,88089.0,0.002]
[1763950514881,0.913394,88090.0,88089.0,0.002]
[1763950515108,0.72735148,88091.0,88089.0,0.002]
[1763950515282,0.72735148,88091.0,88089.0,0.001]
[1763950515482,0.22703537,88092.0,88089.0,0.001]
[1763950515483,0.22704052,88090.0,88089.0,0.001]
[1763950515682,0.22703537,88092.0,88089.0,0.001]
[1763950515933,0.22704052,88090.0,88089.0,0.001]
[1763950516082,3.30315252,88090.0,88089.0,0.001]
[1763950516268,0.22707832,88076.0,88066.0,0.04627]
[1763950516468,0.727352,88077.0,88066.0,0.04638592]
[1763950516677,0.25280052,88090.0,88066.0,0.04638592]
[1763950516678,0.78804991,88090.0,88089.0,0.001]
[1763950516874,0.323,88084.0,88067.0,0.11376998]
[1763950517084,0.727352,88083.0,88067.0,0.10106]
[1763950517283,0.727352,88079.0,88067.0,0.10106]
[1763950517912,0.22707145,88078.0,88067.0,0.10106]
[1763950518156,0.69211676,88080.0,88067.0,0.10106]
[1763950518356,0.22707225,88078.0,88067.0,0.10106]
[1763950518532,0.22707225,88078.0,88066.0,0.05374592]
[1763950518886,0.22707814,88076.0,88067.0,0.001]
[1763950519049,0.01135447,88071.0,88067.0,0.002]
[1763950519406,0.01135447,88071.0,88066.0,0.00011592]
[1763950519407,1.050352,88067.0,88066.0,0.00011592]
[1763950519581,3.07158845,88067.0,88066.0,0.00011592]
[1763950519720,3.07158845,88067.0,88066.0,0.00063592]
[1763950519721,3.22419976,88067.0,88066.0,0.00063592]
[1763950519926,0.727352,88035.0,88021.0,0.04946]
[1763950520241,0.0113586,88039.0,88021.0,0.04985249]
[1763950520242,0.323,88039.0,88021.0,0.04985249]
[1763950520582,0.727352,88036.0,88021.0,0.04985249]
[1763950520777,0.727352,88037.0,88024.0,0.01]
[1763950521938,0.727352,88037.0,88022.0,0.11378159]
[1763950521939,0.00736,88045.0,88036.0,0.04946]
[1763950522107,0.323,88043.0,88036.0,0.04946]
[1763950522302,0.323,88049.0,88036.0,0.04946]
[1763950522512,0.323,88049.0,88037.0,0.09106]
[1763950522959,0.33435731,88049.0,88036.0,0.04946]
[1763950523168,0.33435731,88049.0,88036.0,0.05046]
[1763950523169,1.050352,88048.0,88036.0,0.05046]
[1763950523364,0.323,88049.0,88037.0,0.09106]
[1763950523572,0.46504991,88060.0,88048.0,0.11324]
[1763950523790,0.727352,88061.0,88048.0,0.11324]
[1763950524024,0.727352,88059.0,88048.0,0.04946]
[1763950524199,0.727352,88059.0,88039.0,0.00736]
[1763950524200,0.73870802,88059.0,88039.0,0.00736]
[1763950524400,0.46504991,88050.0,88039.0,0.00736]
[1763950524782,0.727352,88059.0,88040.0,0.11377694]
[1763950524981,0.72746955,88059.0,88049.0,0.04946]
[1763950525185,0.727352,88058.0,88049.0,0.04946]
[1763950525417,0.727352,88058.0,88036.0,0.05146]
[1763950525609,0.727352,88058.0,88047.0,0.04946]
[1763950525896,0.00011755,88059.0,88057.0,0.06378]
[1763950526033,0.00011755,88059.0,88058.0,0.06378]
[1763950526454,0.00011755,88059.0,88058.0,0.16484]
[1763950526674,0.00011755,88059.0,88058.0,0.06378]
[1763950527005,0.00011755,88059.0,88047.0,0.04946]
[1763950527183,0.46504991,88057.0,88047.0,0.04946]
[1763950527388,0.727352,88056.0,88047.0,0.05682]
[1763950527685,0.727352,88056.0,88047.0,0.04946]
[1763950528040,0.00011755,88059.0,88055.0,0.06378]
[1763950528186,0.00011755,88059.0,88058.0,0.001]
[1763950528390,0.00011755,88059.0,88058.0,0.06478]
[1763950528592,0.00011755,88059.0,88058.0,0.06378]
[1763950528933,0.00011755,88059.0,88053.0,0.09106]
[1763950529073,0.00011755,88059.0,88055.0,0.001]
[1763950529283,0.00011755,88059.0,88058.0,0.06378]
[1763950529486,0.00076733,88059.0,88058.0,0.06378]
[1763950529701,0.00076733,88059.0,88058.0,0.15684]
[1763950530127,0.00076733,88059.0,88058.0,0.15584]
[1763950530336,0.00076733,88059.0,88058.0,0.16584]
[1763950530879,0.00076733,88059.0,88058.0,0.1632]
[1763950531065,0.00076733,88059.0,88058.0,0.07214]
[1763950531285,0.00076733,88059.0,88058.0,0.001]
[1763950531901,0.00076733,88059.0,88058.0,0.002]
[1763950532479,0.46504991,88068.0,88058.0,0.002]
[1763950532681,0.01135499,88067.0,88058.0,0.002]
[1763950532915,0.01135524,88065.0,88058.0,0.002]
[1763950533471,0.02447,88059.0,88058.0,0.002]
[1763950533789,0.00736,88065.0,88058.0,0.002]
[1763950534088,0.00736,88065.0,88058.0,0.001]
[1763950534247,0.00736,88065.0,88058.0,0.002]
[1763950534433,0.00736,88084.0,88064.0,0.06631]
[1763950534633,2.0,88083.0,88064.0,0.07631]
[1763950534834,0.46504991,88074.0,88064.0,0.07631]
[1763950535036,0.46504991,88074.0,88064.0,0.06631]
[1763950535366,0.46504991,88074.0,88058.0,0.001]
[1763950535367,0.323,88073.0,88058.0,0.001]
[1763950535572,0.46504991,88068.0,88055.0,0.00736]
[1763950536153,0.22706029,88083.0,88055.0,0.00736]
[1763950536154,0.22705184,88086.0,88067.0,0.06631]
[1763950536379,0.22705184,88086.0,88056.0,0.09381]
[1763950536380,0.323,88076.0,88060.0,0.01]
[1763950536659,0.46504991,88070.0,88060.0,0.01]
[1763950536842,0.46504991,88070.0,88061.0,0.09381]
[1763950537402,0.00011766,88084.0,88069.0,0.06631]
[1763950537610,0.00011766,88084.0,88061.0,0.09381]
[1763950537611,0.00011766,88084.0,88083.0,0.11237]
[1763950537848,0.00011766,88084.0,88083.0,0.20618]
[1763950538769,0.00011766,88084.0,88083.0,0.11237]
[1763950538989,0.00011766,88084.0,88083.0,0.20618]
[1763950539165,0.00011766,88084.0,88083.0,0.21018]
[1763950539508,0.02528,88106.0,88083.0,0.21018]
[1763950539509,2.0,88106.0,88083.0,0.21818]
[1763950539748,0.00732,88107.0,88105.0,0.04606]
[1763950540349,0.00145332,88106.0,88105.0,0.04606]
[1763950540557,0.00157095,88106.0,88105.0,0.04606]
[1763950540764,0.00157095,88106.0,88105.0,0.12237]
[1763950541133,0.00157095,88106.0,88105.0,0.21618]
[1763950541334,0.00157095,88106.0,88105.0,0.21718]
[1763950541534,9.5e-07,88106.0,88105.0,0.21718]
[1763950541735,9.5e-07,88106.0,88105.0,0.2135]
[1763950542016,9.5e-07,88106.0,88105.0,0.04706]
[1763950542488,9.5e-07,88106.0,88105.0,0.04906]
[1763950542815,9.5e-07,88106.0,88105.0,0.04706]
[1763950543210,9.5e-07,88106.0,88105.0,0.003]
[1763950543410,9.5e-07,88106.0,88105.0,0.002]
[1763950543615,0.02697095,88106.0,88105.0,0.002]
[1763950543789,0.05132095,88106.0,88105.0,0.004]
[1763950544380,2.37432095,88106.0,88105.0,0.002]
[1763950544562,2.37432095,88106.0,88055.0,0.04606]
[1763950544563,0.01135383,88076.0,88055.0,0.04606]
[1763950544694,0.46504991,88070.0,88055.0,0.04606]
[1763950544893,0.02697,88061.0,88055.0,0.04606]
[1763950545098,0.02697,88061.0,88048.0,0.04606]
[1763950545878,0.01135666,88054.0,88048.0,0.00011668]
[1763950546000,0.01135705,88051.0,88048.0,0.00011668]
[1763950546206,0.57294624,88049.0,88048.0,0.00011668]
[1763950546406,0.323,88049.0,88048.0,0.00011668]
[1763950546607,0.00732,88054.0,88048.0,0.06642668]
[1763950546844,0.00732,88054.0,88048.0,0.00011668]
[1763950547237,0.323,88053.0,88048.0,0.00011668]
[1763950547444,0.00732,88054.0,88048.0,0.00011668]
[1763950547638,0.01867679,88053.0,88048.0,0.00211668]
[1763950547826,0.01867679,88053.0,88048.0,0.00011668]
[1763950548023,0.01135705,88051.0,88048.0,0.00111668]
[1763950548235,0.01867679,88053.0,88048.0,0.00111668]
[1763950548436,0.00732,88053.0,88048.0,0.00011668]
[1763950548835,2.0,88059.0,88048.0,0.00011668]
[1763950549119,0.68287494,88060.0,88048.0,0.00011668]
[1763950549323,0.00732,88059.0,88048.0,0.00011668]
[1763950549519,0.00732,88058.0,88048.0,0.00011668]
[1763950549718,0.00732,88058.0,88048.0,0.00111668]
[1763950549924,0.01135628,88057.0,88048.0,0.00111668]
[1763950550219,0.01867615,88058.0,88048.0,0.00011668]
[1763950550602,0.24580174,88058.0,88048.0,0.00111668]
[1763950550779,0.01135705,88051.0,88048.0,0.00111668]
[1763950550919,0.25411624,88049.0,88048.0,0.00111668]
[1763950551124,0.25411624,88049.0,88048.0,0.00011668]
[1763950551786,2.59991624,88049.0,88048.0,0.00111668]
[1763950551928,0.01136118,88019.0,87999.0,0.0451]
[1763950552127,0.00732,88019.0,87999.0,0.04549249]
[1763950552305,0.00732,88019.0,88000.0,0.11370499]
[1763950552508,0.00732,88027.0,88018.0,0.11008]
[1763950553289,0.00732,88027.0,88018.0,0.0451]
[1763950553490,0.68287494,88030.0,88018.0,0.0451]
[1763950553635,0.01136027,88026.0,88002.0,0.01758824]
[1763950553834,0.01136027,88026.0,87999.0,0.04549249]
[1763950553835,0.01136066,88023.0,88018.0,0.001]
[1763950554035,0.01135989,88029.0,88018.0,0.001]
[1763950554036,0.68287494,88028.0,88018.0,0.001]
[1763950554572,0.68287494,88028.0,88009.0,0.09752]
[1763950554573,0.68287494,88028.0,88009.0,0.10752]
[1763950554795,0.68287494,88028.0,88018.0,0.001]
[1763950554796,0.01136027,88026.0,88018.0,0.001]
[1763950555013,0.01136053,88024.0,88018.0,0.001]
[1763950555411,0.323,88023.0,88018.0,0.002]
[1763950555627,0.01136079,88022.0,88018.0,0.002]
[1763950555830,0.01136079,88022.0,88018.0,0.001]
[1763950556006,0.0228,88019.0,88018.0,0.001]
[1763950556205,0.00732,88019.0,88018.0,0.002]
[1763950556547,0.00732,88019.0,88001.0,0.09752]
[1763950556753,0.00732,88019.0,88002.0,0.03272675]
[1763950556950,0.00732,88021.0,88018.0,0.002]
[1763950557152,0.00732,88021.0,88018.0,0.001]
[1763950557357,0.00732,88028.0,88020.0,0.06498]
[1763950557555,0.68287494,88040.0,88020.0,0.06498]
[1763950557556,0.00732,88031.0,88024.0,0.0451]
[1763950557793,0.68287494,88040.0,88024.0,0.0451]
[1763950557794,0.00732,88034.0,88024.0,0.0451]
[1763950558218,0.0383304,88025.0,88018.0,0.002]
[1763950558421,0.01136092,88021.0,88000.0,0.01]
[1763950558567,0.01136105,88020.0,88000.0,0.01]
[1763950558775,0.01136105,88020.0,87999.0,0.04549249]
[1763950558776,0.23858296,88020.0,88018.0,0.001]
[1763950559192,0.00732,88021.0,88020.0,0.001]
[1763950559630,0.323,88029.0,88018.0,0.001]
[1763950559631,0.00732,88023.0,88018.0,0.001]
[1763950559860,0.01136079,88022.0,88010.0,0.0451]
[1763950560175,0.68287494,88020.0,88018.0,0.001]
[1763950560380,0.01136092,88021.0,88018.0,0.002]
[1763950560582,0.23857871,88022.0,87989.0,0.0451]
[1763950560583,0.01136286,88006.0,87989.0,0.14262]
[1763950560781,0.01136286,88006.0,87950.0,0.01039999]
[1763950560782,0.00023,88000.0,87999.0,0.00039249]
[1763950561213,0.0272,88000.0,87999.0,0.00039249]
[1763950561413,2.3502,88000.0,87999.0,0.00039249]
[1763950561815,2.10229451,88000.0,87999.0,0.00039249]
[1763950562030,2.323,88000.0,87999.0,0.00039249]
[1763950562257,0.323,88000.0,87999.0,0.00039249]
[1763950562657,0.323,88000.0,87999.0,0.00239249]
[1763950562658,2.323,88000.0,87999.0,0.00239249]
[1763950562826,2.33032,88000.0,87999.0,0.00039249]
[1763950563035,2.323,88000.0,87999.0,0.00039249]
[1763950563239,2.33032,88000.0,87999.0,0.00139249]
[1763950563392,2.323,88000.0,87999.0,0.00139249]
[1763950563593,2.33032,88000.0,87999.0,0.00139249]
[1763950564192,2.33032,88000.0,87999.0,0.00239249]
[1763950564407,2.33032,88000.0,87999.0,0.00139249]
[1763950564796,2.323,88000.0,87999.0,0.00239249]
[1763950564995,2.33032,88000.0,87999.0,0.00239249]
[1763950565234,0.00999999,88030.0,87999.0,0.00239249]
[1763950565441,0.11040747,88026.0,88006.0,0.04959]
[1763950565766,0.11040747,88026.0,87999.0,0.00239249]
[1763950565767,0.01136247,88009.0,87999.0,0.00239249]
[1763950565956,0.323,88001.0,87999.0,0.00239249]
[1763950566277,0.01136131,88018.0,87999.0,0.00139249]
[1763950566433,0.323,88009.0,88001.0,0.06553]
[1763950566754,0.323,88009.0,87999.0,0.00039249]
[1763950566968,0.01136273,88007.0,87999.0,0.00039249]
[1763950567144,0.323,88009.0,87999.0,0.00039249]
[1763950567347,0.00732,88010.0,87999.0,0.00039249]
[1763950567546,0.47433976,88040.0,87999.0,0.00039249]
[1763950567547,2.01135989,88029.0,88001.0,0.001]
[1763950567787,2.0,88019.0,88003.0,0.01]
[1763950567921,2.0,88027.0,88003.0,0.01]
[1763950568132,2.0113604,88025.0,88004.0,0.09878]
[1763950568338,0.68287494,88020.0,88004.0,0.09878]
[1763950569137,0.68287494,88020.0,87999.0,0.00139249]
[1763950569138,0.01136169,88015.0,87999.0,0.00039249]
[1763950569443,0.01136299,88005.0,87999.0,0.00039249]
[1763950569596,0.22726552,88003.0,87999.0,0.00039249]
[1763950569771,0.22727147,88001.0,87999.0,0.00039249]
[1763950569974,0.00732,88002.0,87999.0,0.00039249]
[1763950570402,0.00732,88002.0,87999.0,0.00139249]
[1763950570403,0.323,88000.0,87999.0,0.00139249]
[1763950570616,0.323,88000.0,87999.0,0.00039249]
[1763950571004,0.323,88000.0,87999.0,0.00239249]
[1763950571283,0.323,88000.0,87999.0,0.00039249]
[1763950571602,0.323,88000.0,87999.0,0.00139249]
[1763950571799,0.323,88001.0,87999.0,0.00339249]
[1763950572194,0.323,88001.0,87999.0,0.00139249]
[1763950572396,0.55027065,88001.0,87999.0,0.00139249]
[1763950572602,0.55027065,88001.0,87999.0,0.00239249]
[1763950572803,2.42608747,88000.0,87999.0,0.00139249]
[1763950573061,2.42608747,88000.0,87999.0,0.00039249]
[1763950573265,2.42608747,88000.0,87999.0,0.00139249]
[1763950573804,2.2526011,88000.0,87999.0,0.00239249]
[1763950573984,2.2599211,88000.0,87999.0,0.00139249]
[1763950574834,2.2599211,88000.0,87999.0,0.00239249]
[1763950575313,2.48719382,88000.0,87999.0,0.00139249]
[1763950575741,2.2599211,88000.0,87999.0,0.00139249]
[1763950576353,2.48719382,88000.0,87999.0,0.00239249]
[1763950577191,2.2526011,88000.0,87999.0,0.00239249]
[1763950577614,0.68287494,88030.0,87999.0,0.16670249]
[1763950577819,2.0,88028.0,88008.0,0.06553]
[1763950578029,0.68287494,88020.0,88000.0,0.09878]
[1763950578276,0.68287494,88020.0,87999.0,0.00239249]
[1763950578277,0.01136118,88019.0,87999.0,0.00239249]
[1763950578491,0.68287494,88010.0,87999.0,0.00139249]
[1763950578731,0.68287494,88010.0,87999.0,0.00239249]
[1763950578940,0.68287494,88010.0,87999.0,0.00139249]
[1763950579107,0.68287494,88010.0,87999.0,0.00339249]
[1763950579521,0.68287494,88010.0,87999.0,0.00139249]
[1763950580012,0.68287494,88010.0,88009.0,0.04959]
[1763950580210,0.01136169,88015.0,87999.0,0.10017249]
[1763950580417,0.00732,88018.0,87999.0,0.00139249]
[1763950580615,0.68287494,88020.0,88000.0,0.09878]
[1763950580824,0.00732,88019.0,88017.0,0.04959]
[1763950581008,0.00732,88019.0,88000.0,0.09878]
[1763950581213,0.00732,88019.0,88000.0,0.10878]
[1763950581861,0.00732,88019.0,88002.0,0.01]
[1763950582743,0.02125519,88018.0,88001.0,0.09878]
[1763950582859,0.02125519,88017.0,88001.0,0.09878]
[1763950583057,0.68287494,88011.0,88000.0,0.001]
[1763950583322,0.68287494,88011.0,88002.0,0.001]
[1763950583714,0.68287494,88011.0,88000.0,0.001]
[1763950584040,0.68287494,88011.0,87999.0,0.00039249]
[1763950584216,0.01136247,88009.0,87999.0,0.00039249]
[1763950584392,0.02126405,88008.0,88002.0,0.001]
[1763950584937,0.02126405,88008.0,88001.0,0.001]
[1763950585137,0.02126405,88008.0,87999.0,0.00139249]
[1763950585485,0.02126405,88008.0,88002.0,0.001]
[1763950585694,0.02126405,88008.0,87999.0,0.00039249]
[1763950586125,0.02126405,88008.0,88001.0,0.001]
[1763950586510,0.02126405,88008.0,87999.0,0.00039249]
[1763950586720,0.02126405,88008.0,88002.0,0.001]
[1763950586929,0.03262665,88008.0,88002.0,0.003]
[1763950587178,0.24852128,88007.0,88002.0,0.003]
[1763950587379,0.55026497,88003.0,88002.0,0.001]
[1763950587596,0.57152902,88003.0,88002.0,0.001]
[1763950587795,0.57152902,88003.0,87999.0,0.00039249]
[1763950587796,0.57152902,88003.0,87999.0,0.00239249]
[1763950587971,0.55027272,88000.0,87999.0,0.00239249]
[1763950588152,0.57153677,88000.0,87999.0,0.00039249]
[1763950588529,2.57153677,88000.0,87999.0,0.00039249]
[1763950588954,2.34426405,88000.0,87999.0,0.00039249]
[1763950589336,2.34426405,88000.0,87999.0,0.00139249]
[1763950589767,2.35158405,88000.0,87999.0,0.00139249]
[1763950590167,2.34426405,88000.0,87999.0,0.00139249]
[1763950590367,2.35158405,88000.0,87999.0,0.00039249]
[1763950590793,2.35158405,88000.0,87999.0,0.00139249]
[1763950592114,2.35186452,88000.0,87999.0,0.00139249]
[1763950592492,2.45495199,88000.0,87999.0,0.00139249]
[1763950593009,2.45467152,88000.0,87999.0,0.00139249]
[1763950593246,2.45467152,88000.0,87962.0,0.09878]
[1763950593247,0.33436518,87988.0,87962.0,0.09878]
[1763950593472,0.323,87979.0,87963.0,0.01]
[1763950593683,0.01136699,87974.0,87962.0,0.09878]
[1763950593800,0.01136699,87974.0,87961.0,0.04959]
[1763950593801,0.68287494,87972.0,87961.0,0.04959]
[1763950594000,0.01136802,87966.0,87961.0,0.04959]
[1763950594200,0.01136867,87961.0,87951.0,0.04959]
[1763950594420,0.01136854,87962.0,87951.0,0.04959]
[1763950594624,0.01136854,87962.0,87950.0,0.0004]
[1763950594625,0.01868867,87961.0,87950.0,0.0004]
[1763950594885,0.01868867,87961.0,87935.0,0.01]
[1763950594886,0.15366,87961.0,87935.0,0.01]
[1763950595099,0.01136932,87956.0,87942.0,0.01237]
[1763950595301,0.01136932,87956.0,87927.0,0.00732]
[1763950595302,0.68287494,87950.0,87927.0,0.01732]
[1763950595524,0.01136945,87955.0,87924.0,0.04854]
[1763950595525,0.68287494,87940.0,87924.0,0.04854]
[1763950595727,0.69424632,87940.0,87924.0,0.04854]
[1763950595897,0.0113719,87936.0,87924.0,0.04854]